fUST/lending_fUST_20251127
["ID","MTS","AMOUNT","RATE_DAILY","PERIOD"]
[394976144,1764243055699,-500.0,0.00019,7]
[394976145,1764243055708,-500.0,0.00019,7]
[394976146,1764243055718,-500.0,0.00019,7]
[394976147,1764243055727,-500.0,0.00019,7]
[394976148,1764243055736,-500.0,0.00019,7]
[394976149,1764243055746,-500.0,0.00019,7]
[394976150,1764243055755,-500.0,0.00019,7]
[394976151,1764243055765,-500.0,0.00019,7]
[394976152,1764243055775,-500.0,0.00019,7]
[394976153,1764243055784,-500.0,0.00019,7]
[394976154,1764243055794,-500.0,0.00019,7]
[394976155,1764243055803,-500.0,0.00019,7]
[394976156,1764243055813,-500.0,0.00019,7]
[394976157,1764243055823,-500.0,0.00019,7]
[394976158,1764243055832,-500.0,0.00019,7]
[394976159,1764243055842,-500.0,0.00019,7]
[394976160,1764243055853,-500.0,0.00019,7]
[394976161,1764243055862,-500.0,0.00019,7]
[394976162,1764243055872,-500.0,0.00019,7]
[394976163,1764243055881,-500.0,0.00019,7]
[394976164,1764243055891,-500.0,0.00019,7]
[394976165,1764243055901,-500.0,0.00019,7]
[394976166,1764243055911,-1000.0,0.00019,19]
[394976167,1764243055920,-500.0,0.00019,7]
[394976168,1764243055929,-539.74,0.00019,7]
[394976169,1764243055939,-500.0,0.00019,7]
[394976170,1764243055949,-500.0,0.00019,7]
[394976171,1764243055961,-500.0,0.00019,7]
[394976172,1764243055972,-500.0,0.00019,7]
[394976173,1764243055981,-500.0,0.00019,7]
[394976174,1764243055990,-500.0,0.00019,7]
[394976175,1764243056000,-500.0,0.00019,7]
[394976176,1764243056010,-500.0,0.00019,7]
[394976177,1764243056020,-500.0,0.00019,7]
[394976178,1764243056030,-500.0,0.00019,7]
[394976179,1764243056040,-500.0,0.00019,7]
[394976180,1764243056050,-500.0,0.00019,7]
[394976181,1764243056059,-500.0,0.00019,7]
[394976182,1764243056070,-500.0,0.00019,7]
[394976183,1764243056079,-500.0,0.00019,7]
[394976184,1764243056089,-500.0,0.00019,7]
[394976185,1764243056098,-500.0,0.00019,7]
[394976186,1764243056108,-500.0,0.00019,7]
[394976187,1764243056117,-181.63175465,0.00019,7]
[394976188,1764243056131,-318.36824535,0.00019,7]
[394976189,1764243056140,-500.0,0.00019,7]
[394976190,1764243056149,-280.00788142,0.00019,7]
[394976192,1764243174690,42786.01738399,4.954e-05,2]
[394976193,1764243174714,10000.0,4.954e-05,2]
[394976194,1764243174736,50000.0,4.954e-05,2]
[394976195,1764243174758,50000.0,4.954e-05,2]
[394976196,1764243174781,20000.0,4.954e-05,2]
[394976199,1764243377346,503.19,0.0002,30]
[394976253,1764243970281,300.0,4.57e-05,2]
[394976256,1764243992963,300.0,4.57e-05,2]
[394976257,1764244015073,300.0,4.57e-05,2]
[394976258,1764244037143,300.0,4.57e-05,2]
[394976259,1764244059154,300.0,4.57e-05,2]
[394976261,1764244081276,300.0,4.57e-05,2]
[394976262,1764244103425,300.0,4.57e-05,2]
[394976263,1764244125381,300.0,4.57e-05,2]
[394976265,1764244147910,300.0,4.57e-05,2]
[394976266,1764244156337,300.0,4.57e-05,2]
[394976314,1764244237953,-150.0,4.605e-05,2]
[394976316,1764244237963,-150.0,4.651e-05,2]
[394976318,1764244237973,-524.85127985,4.833e-05,2]
[394976320,1764244237982,-500.0,4.833e-05,2]
[394976322,1764244237991,-500.0,4.833e-05,2]
[394976324,1764244238000,-269.50136797,4.833e-05,2]
[394976326,1764244238008,-500.0,4.833e-05,2]
[394976328,1764244238018,-500.0,4.833e-05,2]
[394976330,1764244238027,-504.26203079,4.833e-05,2]
[394976332,1764244238040,-108.79523444,4.854e-05,2]
[394976378,1764244240151,-277.56510365,4.854e-05,2]
[394976417,1764244606991,3669.8,0.0002,30]
[394976421,1764244772262,305.84212904,0.00010959,7]
[394976427,1764245096561,183.50527742,0.00010959,7]
[394976463,1764245432004,-150.0,4.642e-05,2]
[394976465,1764245432014,-150.0,4.698e-05,2]
[394976467,1764245432023,-189.0,4.754e-05,2]
[394976472,1764245432059,-2200.0,4.754e-05,2]
[394976752,1764245444543,-4213.98261601,4.706e-05,2]
[394976753,1764245444554,-5913.64333035,4.754e-05,2]
[394976767,1764245641677,916.26176079,4.554e-05,2]
[394976768,1764245649971,2000.0,4.554e-05,2]
[394976769,1764245658290,896.38724039,4.554e-05,2]
[394976770,1764245668801,2000.0,4.5e-05,2]
[394976829,1764246389755,300.0,4.56e-05,2]
[394976834,1764246412772,300.0,4.56e-05,2]
[394976836,1764246435258,300.0,4.56e-05,2]
[394976839,1764246450788,300.0,4.56e-05,2]
[394976841,1764246473778,150.0,4.527e-05,2]
[394976844,1764246495832,150.0,4.527e-05,2]
[394976850,1764246518453,150.0,4.527e-05,2]
[394976856,1764246540493,150.0,4.527e-05,2]
[394976858,1764246563170,150.0,4.527e-05,2]
[394976859,1764246586190,150.0,4.527e-05,2]
[394976870,1764246608842,150.0,4.527e-05,2]
[394976872,1764246631436,150.0,4.527e-05,2]
[394976917,1764246632177,-150.0,4.573e-05,2]
[394976920,1764246632186,-150.0,4.619e-05,2]
[394976921,1764246632195,-300.0,4.632e-05,2]
[394976924,1764246632205,-300.0,4.632e-05,2]
[394976926,1764246632214,-1200.0,4.632e-05,2]
[394976928,1764246632224,-500.45475973,4.633e-05,2]
[394976930,1764246632233,-500.0,4.633e-05,2]
[394976932,1764246632242,-500.0,4.633e-05,2]
[394976933,1764246632251,-503.76332366,4.633e-05,2]
[394976936,1764246632260,-500.0,4.633e-05,2]
[394976938,1764246632271,-824.22858788,4.653e-05,2]
[394976940,1764246632290,-375.77141212,4.653e-05,2]
[394976941,1764246632299,-16710.34918993,4.654e-05,2]
[394976944,1764246632313,-373.11910904,4.654e-05,2]
[394976986,1764246638228,-281.04,4.654e-05,2]
[394976998,1764246638339,-9586.51367462,4.654e-05,2]
[394977000,1764246638351,-701.99014555,4.654e-05,2]
[394977113,1764246640856,-532.5,4.607e-05,2]
[394977114,1764246640876,-31891.41910729,4.607e-05,2]
[394977115,1764246641121,-22441.57049997,4.607e-05,2]
[394977116,1764246641132,-752172.86157103,4.654e-05,2]
[394977121,1764246646375,-1657.4682726,4.654e-05,2]
[394977125,1764246646635,-8767.27959657,4.654e-05,2]
[394977132,1764246747479,300.0,4.56e-05,2]
[394977133,1764246769858,300.0,4.56e-05,2]
[394977136,1764246781606,1541.86,1e-05,2]
[394977137,1764246781911,1541.86,1e-05,2]
[394977139,1764246782212,1541.86,1.1e-05,2]
[394977140,1764246782518,1541.86,1.1e-05,2]
[394977141,1764246782933,1541.86,1.1e-05,2]
[394977142,1764246783172,1541.86,1.1e-05,2]
[394977143,1764246783488,1541.86,1.2e-05,2]
[394977144,1764246783858,1541.86,1.2e-05,2]
[394977145,1764246784197,1541.86,1.2e-05,2]
[394977147,1764246784516,1541.86,1.2e-05,2]
[394977148,1764246784818,1541.86,1.3e-05,2]
[394977149,1764246785132,1541.86,1.3e-05,2]
[394977150,1764246785462,1541.86,1.3e-05,2]
[394977152,1764246785780,1541.86,1.3e-05,2]
[394977153,1764246786091,1541.86,1.4e-05,2]
[394977154,1764246786398,1541.86,1.4e-05,2]
[394977155,1764246786712,1541.86,1.4e-05,2]
[394977156,1764246787363,1541.86,1.4e-05,2]
[394977157,1764246787519,1541.86,1.5e-05,2]
[394977158,1764246787643,1541.86,1.5e-05,2]
[394977159,1764246787975,1541.86,1.5e-05,2]
[394977160,1764246788378,1541.86,1.5e-05,2]
[394977161,1764246788741,1541.86,1.6e-05,2]
[394977162,1764246789057,1541.86,1.6e-05,2]
[394977163,1764246789388,1541.86,1.6e-05,2]
[394977164,1764246789678,1541.86,1.6e-05,2]
[394977165,1764246789982,1541.86,1.7e-05,2]
[394977166,1764246790278,1541.86,1.7e-05,2]
[394977167,1764246790595,1541.86,1.7e-05,2]
[394977168,1764246791269,1541.86,1.7e-05,2]
[394977169,1764246791574,1541.86,1.8e-05,2]
[394977170,1764246791976,1541.86,1.8e-05,2]
[394977171,1764246792342,1541.86,1.8e-05,2]
[394977172,1764246792695,1541.86,1.8e-05,2]
[394977173,1764246792977,1541.86,1.9e-05,2]
[394977174,1764246793006,1541.86,1.683e-05,2]
[394977175,1764246793332,1541.86,1.9e-05,2]
[394977176,1764246793640,1541.86,1.9e-05,2]
[394977177,1764246793944,1541.86,1.9e-05,2]
[394977178,1764246794300,1541.86,2e-05,2]
[394977179,1764246794619,1541.86,2e-05,2]
[394977180,1764246794920,1541.86,2e-05,2]
[394977181,1764246795337,1541.86,2e-05,2]
[394977182,1764246795637,1541.86,2.1e-05,2]
[394977183,1764246796401,1541.86,2.1e-05,2]
[394977184,1764246796725,1541.86,2.1e-05,2]
[394977185,1764246797006,1541.86,2.1e-05,2]
[394977186,1764246797304,1541.86,2.2e-05,2]
[394977187,1764246798078,1541.86,2.2e-05,2]
[394977188,1764246798153,1541.86,2.2e-05,2]
[394977189,1764246798309,1541.86,2.3e-05,2]
[394977190,1764246815051,1270.0,4.56e-05,2]
[394977191,1764246824008,206.70119687,4.506e-05,2]
[394977194,1764246838436,1270.0,4.56e-05,2]
[394977195,1764246841726,438.22,1e-05,2]
[394977196,1764246842045,438.22,1e-05,2]
[394977197,1764246842333,438.22,1.1e-05,2]
[394977198,1764246842603,438.22,1.1e-05,2]
[394977199,1764246842931,438.22,1.1e-05,2]
[394977200,1764246843250,438.22,1.1e-05,2]
[394977201,1764246843577,438.22,1.2e-05,2]
[394977202,1764246843923,438.22,1.2e-05,2]
[394977203,1764246844274,438.22,1.2e-05,2]
[394977204,1764246844565,438.22,1.2e-05,2]
[394977205,1764246844828,438.22,1.3e-05,2]
[394977206,1764246845117,438.22,1.3e-05,2]
[394977207,1764246846006,438.22,1.3e-05,2]
[394977208,1764246846065,438.22,1.3e-05,2]
[394977209,1764246846132,438.22,1.4e-05,2]
[394977210,1764246846393,438.22,1.4e-05,2]
[394977211,1764246846646,438.22,1.4e-05,2]
[394977212,1764246847594,438.22,1.4e-05,2]
[394977213,1764246848021,438.22,1.5e-05,2]
[394977214,1764246848356,438.22,1.5e-05,2]
[394977215,1764246848650,438.22,1.5e-05,2]
[394977216,1764246848960,438.22,1.5e-05,2]
[394977217,1764246849343,438.22,1.6e-05,2]
[394977218,1764246849568,438.22,1.6e-05,2]
[394977219,1764246850284,438.22,1.6e-05,2]
[394977220,1764246850331,438.22,1.6e-05,2]
[394977221,1764246850505,438.22,1.7e-05,2]
[394977222,1764246853156,438.22,1.7e-05,2]
[394977223,1764246853431,438.22,1.7e-05,2]
[394977224,1764246853797,438.22,1.7e-05,2]
[394977225,1764246854166,438.22,1.8e-05,2]
[394977226,1764246854461,1270.0,4.56e-05,2]
[394977227,1764246854492,438.22,1.8e-05,2]
[394977228,1764246854810,438.22,1.8e-05,2]
[394977229,1764246855127,438.22,1.8e-05,2]
[394977230,1764246855457,438.22,1.9e-05,2]
[394977231,1764246855730,438.22,1.9e-05,2]
[394977232,1764246856273,438.22,1.9e-05,2]
[394977233,1764246856602,438.22,1.9e-05,2]
[394977234,1764246856919,438.22,2e-05,2]
[394977235,1764246857203,438.22,2e-05,2]
[394977236,1764246857540,438.22,2e-05,2]
[394977237,1764246857769,438.22,2e-05,2]
[394977238,1764246858056,438.22,2.1e-05,2]
[394977239,1764246858337,438.22,2.1e-05,2]
[394977240,1764246858616,438.22,2.1e-05,2]
[394977241,1764246859532,438.22,2.1e-05,2]
[394977242,1764246859864,438.22,2.2e-05,2]
[394977243,1764246860140,438.22,2.2e-05,2]
[394977244,1764246860699,438.22,2.2e-05,2]
[394977245,1764246860770,438.22,2.3e-05,2]
[394977246,1764246862256,1270.0,4.56e-05,2]
[394977248,1764246874168,1000.0,4.56e-05,2]
[394977249,1764246877424,1270.0,4.56e-05,2]
[394977263,1764246885189,1270.0,4.56e-05,2]
[394977294,1764246900913,1270.0,4.56e-05,2]
[394977298,1764246908732,970.0,4.56e-05,2]
[394977299,1764246924302,970.0,4.56e-05,2]
[394977300,1764246932172,970.0,4.56e-05,2]
[394977303,1764246947446,970.0,4.56e-05,2]
[394977304,1764246955246,970.0,4.56e-05,2]
[394977305,1764246970544,970.0,4.56e-05,2]
[394977306,1764246976486,4569.29477159,4.506e-05,2]
[394977307,1764246978898,970.0,4.56e-05,2]
[394977309,1764246992900,880.86236812,4.56e-05,2]
[394977312,1764246994760,970.0,4.56e-05,2]
[394977314,1764247002725,970.0,4.56e-05,2]
[394977317,1764247017906,970.0,4.56e-05,2]
[394977318,1764247026297,970.0,4.56e-05,2]
[394977320,1764247041461,970.0,4.56e-05,2]
[394977321,1764247049388,970.0,4.56e-05,2]
[394977410,1764247064618,970.0,4.56e-05,2]
[394977413,1764247072462,970.0,4.56e-05,2]
[394977415,1764247087630,150.0,4.56e-05,2]
[394977417,1764247095586,150.0,4.56e-05,2]
[394977418,1764247110856,150.0,4.56e-05,2]
[394977420,1764247118718,150.0,4.56e-05,2]
[394977422,1764247134192,150.0,4.56e-05,2]
[394977424,1764247141692,150.0,4.56e-05,2]
[394977429,1764247156948,150.0,4.56e-05,2]
[394977430,1764247165925,150.0,4.56e-05,2]
[394977431,1764247181647,150.0,4.56e-05,2]
[394977432,1764247189426,150.0,4.56e-05,2]
[394977433,1764247195882,890000.0,4.554e-05,2]
[394977436,1764247205293,150.0,4.56e-05,2]
[394977439,1764247213184,150.0,4.56e-05,2]
[394977440,1764247229059,150.0,4.56e-05,2]
[394977441,1764247237011,150.0,4.56e-05,2]
[394977442,1764247252175,150.0,4.56e-05,2]
[394977443,1764247260301,150.0,4.56e-05,2]
[394977445,1764247275641,150.0,4.56e-05,2]
[394977446,1764247283483,150.0,4.56e-05,2]
[394977452,1764247298784,150.0,4.56e-05,2]
[394977453,1764247307631,150.0,4.56e-05,2]
[394977456,1764247322794,150.0,4.56e-05,2]
[394977458,1764247330625,150.0,4.56e-05,2]
[394977471,1764247346213,150.0,4.56e-05,2]
[394977483,1764247371326,150.0,4.537e-05,2]
[394977487,1764247393444,150.0,4.537e-05,2]
[394977489,1764247415581,150.0,4.537e-05,2]
[394977491,1764247437636,150.0,4.537e-05,2]
[394977493,1764247459696,150.0,4.537e-05,2]
[394977495,1764247475101,150.0,4.537e-05,2]
[394977496,1764247482384,150.0,4.537e-05,2]
[394977497,1764247497814,150.0,4.537e-05,2]
[394977500,1764247505652,150.0,4.537e-05,2]
[394977502,1764247520566,150.0,4.537e-05,2]
[394977503,1764247528542,150.0,4.537e-05,2]
[394977507,1764247537712,150.0,4.537e-05,2]
[394977509,1764247555672,150.0,4.537e-05,2]
[394977510,1764247561906,3147.97,1e-05,2]
[394977513,1764247562292,3147.97,1e-05,2]
[394977514,1764247562775,150.0,4.537e-05,2]
[394977515,1764247563139,3147.97,1e-05,2]
[394977516,1764247563497,3147.97,1e-05,2]
[394977517,1764247563813,3147.97,1.1e-05,2]
[394977518,1764247564057,3147.97,1.1e-05,2]
[394977519,1764247564337,3147.97,1.1e-05,2]
[394977520,1764247564660,3147.97,1.1e-05,2]
[394977521,1764247564933,3147.97,1.1e-05,2]
[394977522,1764247565207,3147.97,1.1e-05,2]
[394977523,1764247565477,3147.97,1.2e-05,2]
[394977525,1764247566145,3147.97,1.2e-05,2]
[394977526,1764247566294,3147.97,1.2e-05,2]
[394977527,1764247566478,3147.97,1.2e-05,2]
[394977528,1764247566745,3147.97,1.2e-05,2]
[394977529,1764247567026,3147.97,1.2e-05,2]
[394977530,1764247567483,3147.97,1.2e-05,2]
[394977532,1764247567876,3147.97,1.3e-05,2]
[394977533,1764247568761,3147.97,1.3e-05,2]
[394977534,1764247569081,3147.97,1.3e-05,2]
[394977535,1764247569402,3147.97,1.3e-05,2]
[394977537,1764247569688,3147.97,1.3e-05,2]
[394977538,1764247569978,3147.97,1.3e-05,2]
[394977539,1764247570272,3147.97,1.4e-05,2]
[394977540,1764247570847,3147.97,1.4e-05,2]
[394977541,1764247571203,3147.97,1.4e-05,2]
[394977542,1764247571521,3147.97,1.4e-05,2]
[394977543,1764247571815,3147.97,1.4e-05,2]
[394977544,1764247572152,3147.97,1.4e-05,2]
[394977545,1764247572437,3147.97,1.4e-05,2]
[394977546,1764247572958,3147.97,1.5e-05,2]
[394977547,1764247573099,3147.97,1.5e-05,2]
[394977548,1764247573305,3147.97,1.5e-05,2]
[394977549,1764247573688,3147.97,1.5e-05,2]
[394977550,1764247573972,3147.97,1.5e-05,2]
[394977551,1764247574298,3147.97,1.5e-05,2]
[394977552,1764247574601,3147.97,1.6e-05,2]
[394977553,1764247574885,3147.97,1.6e-05,2]
[394977554,1764247575164,3147.97,1.6e-05,2]
[394977555,1764247575529,3147.97,1.6e-05,2]
[394977557,1764247575820,3147.97,1.6e-05,2]
[394977558,1764247576143,3147.97,1.6e-05,2]
[394977559,1764247576749,3147.97,1.6e-05,2]
[394977560,1764247576824,3147.97,1.7e-05,2]
[394977561,1764247577060,3147.97,1.7e-05,2]
[394977564,1764247577439,3147.97,1.7e-05,2]
[394977567,1764247577634,3147.97,1.584e-05,2]
[394977569,1764247577734,3147.97,1.7e-05,2]
[394977571,1764247578027,3147.97,1.7e-05,2]
[394977573,1764247578677,3147.97,1.7e-05,2]
[394977577,1764247585401,150.0,4.537e-05,2]
[394977578,1764247600351,150.0,4.537e-05,2]
[394977579,1764247608665,150.0,4.537e-05,2]
[394977580,1764247621671,157.4,1e-05,2]
[394977581,1764247622020,157.4,1e-05,2]
[394977582,1764247622308,157.4,1.1e-05,2]
[394977583,1764247622602,157.4,1.1e-05,2]
[394977584,1764247623159,157.4,1.2e-05,2]
[394977585,1764247623556,157.4,1.2e-05,2]
[394977586,1764247623848,157.4,1.2e-05,2]
[394977587,1764247624075,157.4,9.9e-06,2]
[394977588,1764247624150,157.4,1.3e-05,2]
[394977589,1764247624475,157.4,1.3e-05,2]
[394977590,1764247624821,157.4,1.4e-05,2]
[394977591,1764247625104,157.4,1.4e-05,2]
[394977592,1764247625392,157.4,1.4e-05,2]
[394977593,1764247625668,157.4,1.5e-05,2]
[394977594,1764247626179,157.4,1.5e-05,2]
[394977595,1764247626558,157.4,1.6e-05,2]
[394977596,1764247626786,157.4,1.6e-05,2]
[394977597,1764247627197,157.4,1.6e-05,2]
[394977598,1764247627553,157.4,1.7e-05,2]
[394977599,1764247627846,157.4,1.7e-05,2]
[394977601,1764247632753,150.0,4.537e-05,2]
[394977607,1764247647741,150.0,4.537e-05,2]
[394977614,1764247655746,150.0,4.537e-05,2]
[394977624,1764247670678,150.0,4.537e-05,2]
[394977626,1764247681632,150.0,4.537e-05,2]
[394977627,1764247682559,229.26,1e-05,2]
[394977628,1764247682642,229.26,1e-05,2]
[394977629,1764247682952,229.26,1e-05,2]
[394977630,1764247683295,229.26,1e-05,2]
[394977631,1764247683572,229.26,1.1e-05,2]
[394977632,1764247683955,229.26,1.1e-05,2]
[394977633,1764247684240,229.26,1.1e-05,2]
[394977634,1764247684521,229.26,1.1e-05,2]
[394977635,1764247684860,229.26,1.1e-05,2]
[394977636,1764247685191,229.26,1.1e-05,2]
[394977637,1764247685543,229.26,1.2e-05,2]
[394977638,1764247685834,229.26,1.2e-05,2]
[394977639,1764247686833,229.26,1.2e-05,2]
[394977640,1764247687162,229.26,1.2e-05,2]
[394977641,1764247688202,229.26,1.2e-05,2]
[394977642,1764247688568,229.26,1.2e-05,2]
[394977643,1764247688884,229.26,1.2e-05,2]
[394977644,1764247689179,229.26,1.3e-05,2]
[394977645,1764247689474,229.26,1.3e-05,2]
[394977646,1764247689755,229.26,1.3e-05,2]
[394977647,1764247690112,229.26,1.3e-05,2]
[394977648,1764247690399,229.26,1.3e-05,2]
[394977649,1764247690691,229.26,1.3e-05,2]
[394977650,1764247690973,229.26,1.4e-05,2]
[394977651,1764247691231,229.26,1.4e-05,2]
[394977652,1764247691505,229.26,1.4e-05,2]
[394977653,1764247691807,229.26,1.4e-05,2]
[394977654,1764247692150,229.26,1.4e-05,2]
[394977656,1764247692981,229.26,1.4e-05,2]
[394977657,1764247693302,229.26,1.4e-05,2]
[394977658,1764247693370,229.26,1.5e-05,2]
[394977659,1764247693606,229.26,1.5e-05,2]
[394977660,1764247693877,229.26,1.5e-05,2]
[394977661,1764247694173,229.26,1.5e-05,2]
[394977662,1764247694479,229.26,1.5e-05,2]
[394977664,1764247694859,229.26,1.5e-05,2]
[394977665,1764247695162,229.26,1.6e-05,2]
[394977666,1764247695456,229.26,1.6e-05,2]
[394977667,1764247695811,229.26,1.6e-05,2]
[394977668,1764247696100,229.26,1.6e-05,2]
[394977669,1764247696475,229.26,1.6e-05,2]
[394977671,1764247696740,150.0,4.537e-05,2]
[394977672,1764247696780,229.26,1.6e-05,2]
[394977673,1764247697073,229.26,1.6e-05,2]
[394977674,1764247697347,229.26,1.7e-05,2]
[394977675,1764247697638,229.26,1.7e-05,2]
[394977677,1764247697930,229.26,1.7e-05,2]
[394977678,1764247698215,229.26,1.7e-05,2]
[394977679,1764247698523,229.26,1.7e-05,2]
[394977681,1764247698920,229.26,1.7e-05,2]
[394977682,1764247699247,229.26,1.8e-05,2]
[394977686,1764247704482,150.0,4.537e-05,2]
[394977696,1764247719653,150.0,4.537e-05,2]
[394977697,1764247728552,150.0,4.537e-05,2]
[394977698,1764247737980,150.0,4.537e-05,2]
[394977699,1764247744205,160.0,5.9e-07,2]
[394977700,1764247745244,160.0,5.9e-07,2]
[394977701,1764247745960,150.0,4.56e-05,2]
[394977702,1764247746297,160.0,5.9e-07,2]
[394977703,1764247747337,160.0,5.9e-07,2]
[394977704,1764247748440,160.0,5.9e-07,2]
[394977705,1764247749515,160.0,5.9e-07,2]
[394977706,1764247750570,160.0,5.9e-07,2]
[394977707,1764247751838,160.0,5.9e-07,2]
[394977708,1764247752883,160.0,5.9e-07,2]
[394977709,1764247754333,150.0,4.56e-05,2]
[394977710,1764247762183,150.0,4.56e-05,2]
[394977712,1764247770331,150.0,4.56e-05,2]
[394977713,1764247778255,150.0,4.56e-05,2]
[394977714,1764247786472,150.0,4.56e-05,2]
[394977727,1764247796702,150.0,4.56e-05,2]
[394977730,1764247805484,150.0,4.56e-05,2]
[394977731,1764247813946,150.0,4.56e-05,2]
[394977732,1764247819838,735.0,0.00014,10]
[394977733,1764247822359,150.0,4.56e-05,2]
[394977734,1764247830435,150.0,4.56e-05,2]
[394977738,1764247832470,-150.0,4.606e-05,2]
[394977739,1764247832479,-1200.0,4.87e-05,2]
[394977740,1764247832489,-300.0,4.87e-05,2]
[394977741,1764247832498,-970.0,4.871e-05,2]
[394977742,1764247832507,-300.0,4.871e-05,2]
[394977743,1764247832517,-300.0,4.871e-05,2]
[394977744,1764247832526,-300.0,4.871e-05,2]
[394977745,1764247832536,-500.0,4.873e-05,2]
[394977746,1764247832545,-500.28772685,4.873e-05,2]
[394977747,1764247832554,-500.0,4.873e-05,2]
[394977749,1764247832571,-500.34007379,4.873e-05,2]
[394977751,1764247832581,-648.25680174,4.873e-05,2]
[394977753,1764247832590,-164.87414979,4.873e-05,2]
[394977755,1764247832599,-507.38966674,4.873e-05,2]
[394977757,1764247832609,-502.01530104,4.873e-05,2]
[394977759,1764247832618,-152.5107836,4.873e-05,2]
[394977761,1764247832627,-500.0,4.873e-05,2]
[394977763,1764247832637,-296.85926201,4.873e-05,2]
[394977764,1764247832646,-500.0,4.873e-05,2]
[394977765,1764247832656,-500.0,4.873e-05,2]
[394977766,1764247832665,-139515.24862919,4.9e-05,2]
[394977787,1764247838399,-1981.56408329,4.851e-05,2]
[394977799,1764247838508,-2012.70208524,4.851e-05,2]
[394977802,1764247838519,-500.0,4.851e-05,2]
[394977803,1764247838530,-616.52065901,4.851e-05,2]
[394977805,1764247838542,-122.24511109,4.851e-05,2]
[394977807,1764247838552,-1391.49092417,4.9e-05,2]
[394978087,1764247846189,-37389.14743653,4.9e-05,2]
[394978088,1764247846204,-38281.59007556,4.9e-05,2]
[394978089,1764247846218,-38198.88532782,4.9e-05,2]
[394978098,1764247848568,-4393.78864409,4.9e-05,2]
[394978099,1764247848583,-826.46892872,4.9e-05,2]
[394978100,1764247849322,-8497.82427888,4.9e-05,2]
[394978101,1764247849555,-1500.2640041,4.9e-05,2]
[394978127,1764247981628,262.03,1e-05,2]
[394978128,1764247981986,262.03,1e-05,2]
[394978129,1764247982298,262.03,1e-05,2]
[394978130,1764247982586,262.03,1e-05,2]
[394978131,1764247982884,262.03,1.1e-05,2]
[394978132,1764247983190,262.03,1.1e-05,2]
[394978134,1764247983621,262.03,1.1e-05,2]
[394978135,1764247983882,262.03,1.1e-05,2]
[394978136,1764247984181,262.03,1.1e-05,2]
[394978137,1764247984561,262.03,1.1e-05,2]
[394978138,1764247984917,262.03,1.2e-05,2]
[394978139,1764247985196,262.03,1.2e-05,2]
[394978140,1764247985487,262.03,1.2e-05,2]
[394978141,1764247985764,262.03,1.2e-05,2]
[394978142,1764247986060,262.03,1.2e-05,2]
[394978143,1764247986473,262.03,1.2e-05,2]
[394978144,1764247986800,262.03,1.2e-05,2]
[394978145,1764247987149,262.03,1.3e-05,2]
[394978146,1764247987927,262.03,1.3e-05,2]
[394978147,1764247988033,262.03,1.3e-05,2]
[394978148,1764247988253,262.03,1.3e-05,2]
[394978149,1764247988796,262.03,1.3e-05,2]
[394978150,1764247989091,262.03,1.3e-05,2]